bitfinex/quotes_BTCUSD_20251219
["timestamp","ask_amount","ask_price","bid_price","bid_amount"]
[1766146284594,0.06799436,88243.0,88232.0,0.004621]
[1766146284768,0.05666661,88237.0,88228.0,0.00572]
[1766146284983,0.0212111,88236.0,88228.0,0.00572]
[1766146285186,0.0212111,88236.0,88227.0,0.00572]
[1766146285383,0.00987786,88236.0,88227.0,0.00572]
[1766146286215,0.00987786,88237.0,88227.0,0.00572]
[1766146287159,0.01133272,88240.0,88228.0,0.1359]
[1766146287361,0.00572,88241.0,88228.0,0.1359]
[1766146287577,0.00572,88241.0,88229.0,0.01545891]
[1766146287783,0.00572,88241.0,88230.0,0.1359]
[1766146288004,0.0029,88246.0,88232.0,0.1359]
[1766146288162,0.0025,88245.0,88232.0,0.1359]
[1766146288367,0.0025,88245.0,88233.0,0.00572]
[1766146288562,0.0025,88243.0,88233.0,0.00572]
[1766146288764,0.1186,88242.0,88233.0,0.00572]
[1766146289202,0.000618,88234.0,88233.0,0.00572]
[1766146290704,0.0025,88244.0,88234.0,0.000618]
[1766146291127,0.0025,88244.0,88233.0,0.00572]
[1766146291752,0.0025,88244.0,88233.0,0.14162]
[1766146292886,0.0004,88246.0,88233.0,0.14162]
[1766146293057,0.0004,88246.0,88235.0,0.30406]
[1766146293266,0.0004,88246.0,88236.0,0.01545775]
[1766146293418,0.0004,88246.0,88233.0,0.14162]
[1766146293777,0.0004,88246.0,88234.0,0.15022475]
[1766146294922,0.0004,88246.0,88234.0,0.01432475]
[1766146295127,0.0004,88246.0,88235.0,0.01545793]
[1766146295323,0.0004,88246.0,88233.0,0.02117793]
[1766146295530,0.0004,88246.0,88233.0,0.15736793]
[1766146296148,0.0004,88246.0,88235.0,0.13619]
[1766146296377,0.0004,88246.0,88236.0,0.15164775]
[1766146296378,0.00024712,88242.0,88236.0,0.15164775]
[1766146296578,1.2e-07,88242.0,88241.0,0.056663]
[1766146296780,0.0004,88246.0,88243.0,0.14752234]
[1766146296781,1.2e-07,88246.0,88243.0,0.14752234]
[1766146296981,1.2e-07,88246.0,88245.0,0.48167043]
[1766146297548,1.2e-07,88246.0,88245.0,0.42501]
[1766146299221,1.2e-07,88246.0,88245.0,0.424763]
[1766146301218,1.2e-07,88254.0,88246.0,0.01133195]
[1766146301418,1.2e-07,88254.0,88250.0,0.13619]
[1766146302005,1.2e-07,88254.0,88251.0,0.00572]
[1766146302831,1.2e-07,88254.0,88242.0,0.0454]
[1766146302832,0.01132708,88284.0,88262.0,0.13619]
[1766146303054,0.00010908,88271.0,88266.0,0.01132939]
[1766146303229,0.11492955,88280.0,88271.0,0.0004]
[1766146303406,0.08088002,88280.0,88268.0,0.01132913]
[1766146303610,0.04683049,88280.0,88269.0,0.00572]
[1766146303846,0.0004,88286.0,88269.0,0.00572]
[1766146303847,0.05001839,88285.0,88269.0,0.00572]
[1766146304055,0.06796252,88284.0,88269.0,0.00572]
[1766146304245,0.05663988,88278.0,88269.0,0.00572]
[1766146304449,0.0004,88286.0,88256.0,0.13619]
[1766146304450,0.01132862,88272.0,88256.0,0.13619]
[1766146304666,0.00572,88277.0,88258.0,0.13619]
[1766146304960,0.0025,88276.0,88265.0,0.13619]
[1766146305156,0.0025,88276.0,88266.0,0.02265878]
[1766146305360,0.0025,88276.0,88267.0,0.01132926]
[1766146305561,0.00572,88282.0,88268.0,0.02265826]
[1766146305794,0.04769,88283.0,88269.0,0.14191]
[1766146305961,0.04769,88283.0,88270.0,0.01382887]
[1766146306206,0.0004,88286.0,88271.0,0.13619]
[1766146307275,0.04894,88286.0,88270.0,0.0025]
[1766146307482,0.04894,88286.0,88271.0,0.13619]
[1766146308035,0.0004,88286.0,88274.0,0.28882]
[1766146308156,0.0004,88286.0,88273.0,0.01809249]
[1766146308157,0.0004,88286.0,88275.0,0.00572]
[1766146308360,0.04899004,88296.0,88275.0,0.30586823]
[1766146308640,0.04899004,88296.0,88281.0,0.01132746]
[1766146308847,0.04899004,88296.0,88283.0,0.0113272]
[1766146309020,0.04899004,88296.0,88284.0,0.02265416]
[1766146309435,0.00132785,88285.0,88282.0,0.02265467]
[1766146309640,0.04899004,88296.0,88285.0,0.000699]
[1766146309835,0.04977,88295.0,88282.0,0.02265467]
[1766146310134,0.04977,88294.0,88281.0,0.00572]
[1766146311056,0.04977,88294.0,88282.0,0.02265467]
[1766146311416,4.004e-05,88296.0,88294.0,0.001099]
[1766146311608,4.004e-05,88296.0,88295.0,0.42501]
[1766146311609,4e-08,88296.0,88295.0,0.42501]
[1766146312421,4e-08,88296.0,88290.0,0.13619]
[1766146312818,4e-08,88296.0,88290.0,0.20414762]
[1766146313047,4e-08,88296.0,88292.0,0.14751605]
[1766146313220,4e-08,88296.0,88295.0,0.13869]
[1766146313422,4e-08,88296.0,88295.0,0.45016133]
[1766146313623,4e-08,88296.0,88295.0,0.42751]
[1766146314186,0.00572,88314.0,88295.0,0.0025]
[1766146314387,0.00036374,88315.0,88306.0,0.13619]
[1766146314518,0.00036374,88315.0,88308.0,0.13619]
[1766146314721,0.00036374,88315.0,88310.0,0.01132374]
[1766146314920,3.74e-06,88315.0,88310.0,0.01132374]
[1766146315126,0.09674,88326.0,88306.0,0.25029726]
[1766146315127,0.00572,88335.0,88324.0,0.13619]
[1766146315345,0.00010905,88335.0,88324.0,0.13619]
[1766146315545,0.0004,88348.0,88333.0,0.13619]
[1766146315743,0.00612,88348.0,88335.0,0.13619]
[1766146316011,0.0025,88347.0,88335.0,0.13619]
[1766146316145,0.00612,88348.0,88324.0,0.0025]
[1766146316146,0.06164,88342.0,88324.0,0.0025]
[1766146316330,0.07295964,88342.0,88326.0,0.0025]
[1766146316530,0.07295964,88342.0,88323.0,0.01809249]
[1766146316531,0.05331,88334.0,88315.0,0.01809249]
[1766146316732,0.0679261,88332.0,88315.0,0.01809249]
[1766146316957,0.05371,88332.0,88315.0,0.01809249]
[1766146317160,0.05371,88332.0,88316.0,0.01132297]
[1766146317358,0.00010893,88334.0,88329.0,0.01809249]
[1766146318747,0.00010893,88334.0,88329.0,0.15428249]
[1766146318945,0.00010893,88334.0,88329.0,0.01809249]
[1766146320180,0.00010893,88334.0,88329.0,2.49e-06]
[1766146320388,0.00010893,88334.0,88330.0,0.13619]
[1766146320588,0.0025,88339.0,88322.0,0.14191]
[1766146320775,0.01132041,88336.0,88322.0,0.00582893]
[1766146320980,0.01132259,88319.0,88298.0,0.06795141]
[1766146321222,0.01132259,88319.0,88306.0,0.01809249]
[1766146321223,0.01908,88318.0,88306.0,0.01809249]
[1766146321442,0.00010891,88319.0,88318.0,0.001099]
[1766146321663,0.00407733,88325.0,88318.0,0.13619]
[1766146321961,0.02368,88334.0,88321.0,0.01809249]
[1766146322160,0.08028387,88334.0,88322.0,0.00572]
[1766146322334,0.02368,88334.0,88322.0,0.00572]
[1766146322515,0.03500066,88334.0,88322.0,0.00572]
[1766146322719,0.01132105,88331.0,88322.0,0.00572]
[1766146322920,0.02969105,88331.0,88315.0,0.00572]
[1766146323118,0.02969105,88331.0,88321.0,2.49e-06]
[1766146323460,0.01837,88331.0,88321.0,2.49e-06]
[1766146323637,0.00572,88333.0,88321.0,2.49e-06]
[1766146323834,0.00572,88333.0,88321.0,0.13619249]
[1766146324060,0.00072,88339.0,88325.0,0.01132182]
[1766146324288,0.0004,88348.0,88339.0,0.00072]
[1766146324456,0.0001,88356.0,88353.0,0.0025]
[1766146324657,0.01131695,88363.0,88354.0,0.0025]
[1766146324834,0.00572,88367.0,88354.0,0.0025]
[1766146324835,0.01131656,88366.0,88354.0,0.14324]
[1766146325039,0.01131669,88365.0,88354.0,0.14324]
[1766146325440,0.06790036,88365.0,88354.0,0.14324]
[1766146325644,0.01131682,88364.0,88354.0,0.14324]
[1766146325856,0.01131695,88363.0,88354.0,0.0025]
[1766146326058,0.01131721,88361.0,88354.0,0.0025]
[1766146326268,0.01131708,88362.0,88349.0,0.00572]
[1766146326468,0.01131887,88348.0,88342.0,0.0025]
[1766146326668,0.0025,88350.0,88328.0,0.04536]
[1766146326869,0.01132079,88333.0,88329.0,0.0025]
[1766146327082,0.00287,88338.0,88314.0,0.14074]
[1766146327258,0.01132131,88329.0,88314.0,0.14074]
[1766146327621,0.00287,88338.0,88316.0,0.01132297]
[1766146327622,0.01132066,88334.0,88316.0,0.01132297]
[1766146327770,0.0679257,88332.0,88315.0,0.0283662]
[1766146327995,0.0679257,88332.0,88312.0,0.05661726]
[1766146327996,0.05660999,88324.0,88302.0,0.01]
[1766146328177,0.01132297,88316.0,88303.0,0.00572]
[1766146328372,0.05661398,88318.0,88303.0,0.00572]
[1766146328576,0.01132297,88316.0,88303.0,0.00572]
[1766146328794,0.01132387,88309.0,88303.0,0.00572]
[1766146329015,0.01132374,88310.0,88303.0,0.00572]
[1766146329225,0.01132374,88310.0,88302.0,0.00036374]
[1766146329422,0.001099,88303.0,88302.0,3.74e-06]
[1766146329632,0.01132528,88298.0,88281.0,0.31599]
[1766146329796,0.01125698,88301.0,88282.0,0.01132733]
[1766146329997,0.06794837,88303.0,88283.0,0.0170472]
[1766146330227,0.06794837,88303.0,88284.0,0.01132708]
[1766146330483,0.01132464,88303.0,88283.0,0.0170472]
[1766146330650,0.0113249,88301.0,88283.0,0.0170472]
[1766146330824,0.01132502,88300.0,88283.0,0.00572]
[1766146331245,0.01132502,88300.0,88284.0,0.0025]
[1766146331816,0.01132502,88300.0,88281.0,0.00010891]
[1766146331817,0.01132566,88295.0,88281.0,0.00010891]
[1766146331998,0.05662957,88294.0,88282.0,0.00572]
[1766146332138,0.01132579,88294.0,88282.0,0.00572]
[1766146332547,0.01132566,88295.0,88282.0,0.00572]
[1766146332753,0.01132541,88297.0,88282.0,0.00572]
[1766146332949,0.01132566,88295.0,88283.0,0.0025]
[1766146333150,0.01132579,88294.0,88283.0,0.0025]
[1766146333962,0.06234631,88299.0,88283.0,0.0025]
[1766146334163,0.01132541,88297.0,88283.0,0.0025]
[1766146334366,0.01132528,88298.0,88283.0,0.0025]
[1766146334571,0.01132541,88297.0,88283.0,0.0025]
[1766146334771,0.01132528,88298.0,88282.0,0.00572]
[1766146334772,0.01132618,88291.0,88282.0,0.0025]
[1766146334957,0.06795808,88290.0,88277.0,0.00572]
[1766146335164,0.06795808,88290.0,88275.0,0.03265647]
[1766146335165,1.6657468,88290.0,88275.0,0.00572]
[1766146335542,0.01132733,88282.0,88270.0,0.00572]
[1766146335747,0.01132759,88280.0,88270.0,0.00572]
[1766146335950,0.01132746,88281.0,88270.0,0.00572]
[1766146336157,0.00572,88285.0,88267.0,0.14074]
[1766146336333,0.01132708,88284.0,88267.0,0.14074]
[1766146336532,0.01704695,88285.0,88267.0,0.14074]
[1766146337034,0.07368219,88285.0,88267.0,0.14074]
[1766146337175,0.07368219,88285.0,88268.0,0.0025]
[1766146337372,0.01132797,88277.0,88268.0,0.0025]
[1766146337573,0.01132797,88277.0,88258.0,0.01133041]
[1766146337574,0.00572,88285.0,88266.0,0.01809249]
[1766146337811,0.00572,88285.0,88271.0,0.0025]
[1766146338251,0.00572,88285.0,88271.0,0.1489]
[1766146339603,0.00572,88285.0,88272.0,0.01132862]
[1766146339803,0.01132451,88304.0,88281.0,0.0025]
[1766146340132,0.01704464,88303.0,88285.0,0.1464]
[1766146340315,0.00572,88303.0,88287.0,0.1464]
[1766146340534,0.01132477,88302.0,88287.0,0.46749]
[1766146340731,0.01132528,88298.0,88284.0,0.0025]
[1766146340932,0.01704464,88303.0,88288.0,0.32109]
[1766146341132,0.06795131,88299.0,88288.0,0.32109]
[1766146341386,0.01132502,88300.0,88284.0,0.1489]
[1766146341587,0.01776609,88320.0,88295.0,0.0025]
[1766146341731,0.01132464,88303.0,88295.0,0.0025]
[1766146341930,0.01132464,88303.0,88285.0,0.01]
[1766146341931,0.001099,88295.0,88285.0,0.00572]
[1766146342156,0.22649759,88302.0,88280.0,0.1464]
[1766146342157,0.01132592,88293.0,88280.0,0.1464]
[1766146342331,0.01132592,88293.0,88278.0,0.32109]
[1766146342538,0.0679548,88294.0,88279.0,0.00572]
[1766146342755,0.06795247,88297.0,88279.0,0.00572]
[1766146342960,0.01132554,88296.0,88279.0,0.00572]
[1766146343172,0.00010888,88297.0,88279.0,0.01704772]
[1766146343371,0.00010888,88297.0,88281.0,0.01132746]
[1766146343609,0.00010888,88297.0,88283.0,0.0113272]
[1766146343737,0.00010888,88297.0,88284.0,0.01132708]
[1766146343935,0.00010888,88297.0,88284.0,0.0025]
[1766146344138,0.00010888,88297.0,88284.0,0.01382708]
[1766146344344,0.00010888,88297.0,88284.0,0.0025]
[1766146345382,0.01132708,88284.0,88262.0,0.04064996]
[1766146345588,0.05773445,88284.0,88267.0,0.00572]
[1766146345798,0.0113272,88283.0,88267.0,0.00572]
[1766146346050,0.01132708,88284.0,88267.0,0.00572]
[1766146346265,0.06796297,88285.0,88267.0,0.00572]
[1766146346906,0.00572,88287.0,88274.0,0.01132836]
[1766146347106,0.00572,88287.0,88272.0,0.46749]
[1766146347310,0.00572,88287.0,88275.0,0.46749]
[1766146347622,0.00572,88287.0,88277.0,0.32109]
[1766146347944,0.22651239,88296.0,88274.0,0.00572]
[1766146347945,0.04536,88308.0,88287.0,0.32109]
[1766146348121,0.00572,88303.0,88293.0,0.01132592]
[1766146348322,0.00400403,88303.0,88294.0,0.02265159]
[1766146348490,0.00036345,88303.0,88294.0,0.02265159]
[1766146348692,0.00036345,88303.0,88292.0,0.1464]
[1766146350178,0.00036345,88303.0,88292.0,0.15772605]
[1766146350464,0.00036345,88303.0,88294.0,0.1464]
[1766146350873,0.00036345,88303.0,88295.0,0.01132566]
[1766146351072,0.00036345,88303.0,88294.0,0.1464]
[1766146351293,0.00036345,88303.0,88294.0,0.15772579]
[1766146351458,0.00036345,88303.0,88294.0,0.1464]
[1766146352066,0.00036345,88303.0,88294.0,0.15212]
[1766146352994,0.00572,88319.0,88304.0,0.01132451]
[1766146353150,0.00572,88319.0,88305.0,0.16832163]
[1766146353351,0.00572,88319.0,88306.0,0.0025]
[1766146353791,0.01704259,88319.0,88306.0,0.0025]
[1766146353952,0.05661491,88316.0,88306.0,0.001401]
[1766146354155,0.06793865,88315.0,88306.0,0.001401]
[1766146354391,0.01132323,88314.0,88302.0,0.00572]
[1766146354601,0.06793875,88315.0,88302.0,0.00572]
[1766146354799,0.01132323,88314.0,88302.0,0.00572]
[1766146355001,0.01809249,88309.0,88284.0,0.15025]
[1766146355200,0.01132451,88304.0,88285.0,0.01572]
[1766146355378,0.01132438,88305.0,88287.0,0.01132669]
[1766146355600,0.05662097,88307.0,88289.0,0.01]
[1766146355805,0.00572,88308.0,88289.0,0.02132643]
[1766146355969,0.01132413,88307.0,88290.0,0.0025]
[1766146356173,0.01132464,88303.0,88285.0,0.0283739]
[1766146356411,0.01132464,88303.0,88284.0,0.15061345]
[1766146356412,0.01132425,88306.0,88286.0,0.46311682]
[1766146356622,0.00572,88308.0,88303.0,0.001099]
[1766146357031,0.00572,88308.0,88297.0,0.06795221]
[1766146357242,0.00572,88308.0,88298.0,0.01132528]
[1766146357538,0.00572,88308.0,88296.0,0.45179]
[1766146357743,0.00572,88308.0,88295.0,0.01132566]
[1766146357887,0.00572,88308.0,88301.0,0.15025]
[1766146359051,0.00572,88308.0,88300.0,0.30154]
[1766146359250,0.004621,88308.0,88300.0,0.30154]
[1766146359452,0.00572,88314.0,88301.0,0.15025]
[1766146359750,0.00572,88314.0,88302.0,0.0025]
[1766146359931,0.00572,88314.0,88303.0,0.15025]
[1766146361072,0.04536,88318.0,88303.0,0.15025]
[1766146361073,0.0566143,88317.0,88303.0,0.15025]
[1766146361236,0.01132284,88317.0,88304.0,0.00572]
[1766146361417,0.01132297,88316.0,88304.0,0.00572]
[1766146361619,0.001099,88304.0,88301.0,0.00572]
[1766146361875,0.001099,88301.0,88299.0,0.00572]
[1766146362173,0.001099,88301.0,88295.0,0.00572]
[1766146362316,0.01132554,88296.0,88285.0,0.03886336]
[1766146362516,0.01132566,88295.0,88284.0,0.00608345]
[1766146362741,0.01132528,88298.0,88284.0,0.00036345]
[1766146362949,0.01132515,88299.0,88284.0,0.00036345]
[1766146363159,0.01704502,88300.0,88284.0,0.00036345]
[1766146364242,0.07367056,88300.0,88284.0,0.00036345]
[1766146364453,0.01704502,88300.0,88284.0,0.00036345]
[1766146364646,0.01132515,88299.0,88284.0,0.00036345]
[1766146365250,0.00572,88300.0,88285.0,0.15025]
[1766146365419,0.00572,88300.0,88286.0,0.45179]
[1766146365835,0.00572,88300.0,88290.0,0.15025]
[1766146367774,0.00572,88300.0,88290.0,0.16157631]
[1766146368143,0.00572,88300.0,88290.0,0.15025]
[1766146368353,0.01704502,88300.0,88288.0,0.00572]
[1766146368909,0.00572,88300.0,88288.0,0.15597]
[1766146369110,0.03322,88301.0,88294.0,0.30154]
[1766146369259,0.00572,88307.0,88294.0,0.30154]
[1766146369260,0.00405252,88307.0,88295.0,0.30154]
[1766146369499,0.00405252,88307.0,88297.0,0.15025]
[1766146369693,0.00822,88314.0,88298.0,0.02265056]
[1766146369860,0.01704323,88314.0,88298.0,0.02265056]
[1766146370061,0.01382336,88313.0,88298.0,0.02265056]
[1766146370281,0.01382361,88311.0,88297.0,0.15025]
[1766146370520,0.0025,88310.0,88294.0,0.00572]
[1766146370811,0.01382374,88310.0,88294.0,0.00572]
[1766146370976,0.0025,88310.0,88294.0,0.15597]
[1766146371912,0.0025,88310.0,88294.0,0.16729579]
[1766146372146,0.0025,88310.0,88294.0,0.15597]
[1766146372493,0.0025,88310.0,88294.0,0.16729579]
[1766146372916,0.0025,88310.0,88295.0,0.02265133]
[1766146373120,0.00572,88314.0,88299.0,0.05662578]
[1766146373322,0.00572,88314.0,88301.0,0.15025]
[1766146373550,0.00572,88314.0,88304.0,0.15025]
[1766146373683,0.00572,88314.0,88304.0,0.17289903]
[1766146374539,0.0025,88317.0,88304.0,0.17289903]
[1766146374682,0.0025,88317.0,88305.0,0.46311438]
[1766146374881,0.0025,88317.0,88305.0,0.45179]
[1766146375082,0.04536,88318.0,88305.0,0.45179]
[1766146375676,0.04536,88318.0,88305.0,0.30154]
[1766146375926,0.04536,88318.0,88301.0,0.00572]
[1766146376118,0.04536,88318.0,88301.0,0.15597]
[1766146376324,0.05668272,88318.0,88301.0,0.15597]
[1766146376626,0.04536,88318.0,88301.0,0.15597]
[1766146376827,0.05668272,88318.0,88301.0,0.15597]
[1766146377027,0.04536,88318.0,88301.0,0.15597]
[1766146377235,0.05668272,88318.0,88301.0,0.15597]
[1766146377430,0.04536,88318.0,88301.0,0.1672949]
[1766146377670,0.04536,88318.0,88302.0,0.07927337]
[1766146377875,0.04536,88318.0,88303.0,0.01132464]
[1766146378182,0.04536,88318.0,88302.0,0.07927337]
[1766146378183,0.04536,88318.0,88304.0,0.02264903]
[1766146378927,0.04536,88318.0,88302.0,0.02264954]
[1766146379169,0.01132284,88317.0,88302.0,0.02264954]
[1766146379386,0.001099,88302.0,88294.0,0.0025]
[1766146379602,0.02264954,88309.0,88294.0,0.0025]
[1766146379808,0.02264954,88310.0,88295.0,0.00572]
[1766146380439,0.03397315,88311.0,88295.0,0.00572]
[1766146380872,0.09059137,88311.0,88295.0,0.00572]
[1766146381083,0.06794255,88310.0,88295.0,0.00572]
[1766146381296,0.01704323,88314.0,88295.0,0.00572]
[1766146381297,0.06794602,88306.0,88295.0,0.00572]
[1766146381552,0.02264954,88305.0,88294.0,0.0025]
[1766146381912,0.07366508,88307.0,88294.0,0.001401]
[1766146381913,0.02264954,88306.0,88294.0,0.001401]
[1766146382172,0.01132451,88304.0,88294.0,0.001401]
[1766146382318,0.03397405,88304.0,88294.0,0.001401]
[1766146382520,0.09059665,88304.0,88294.0,0.001401]
[1766146382724,0.02264954,88304.0,88294.0,0.001401]
[1766146383108,0.00572,88307.0,88295.0,0.15292048]
[1766146383310,0.00572,88307.0,88304.0,0.001099]
[1766146383728,0.00572,88307.0,88296.0,0.01132554]
[1766146384032,0.00572,88307.0,88297.0,0.00153788]
[1766146384227,0.00572,88307.0,88298.0,0.13839]
[1766146384429,0.00572,88307.0,88299.0,0.00153791]
[1766146385048,0.00572,88307.0,88293.0,0.01382592]
[1766146385249,0.00572,88307.0,88297.0,0.13839]
[1766146385475,0.02264954,88315.0,88299.0,0.01132515]
[1766146385673,0.02264954,88315.0,88298.0,0.00572]
[1766146385674,0.00572,88313.0,88307.0,0.001099]
[1766146385850,0.00572,88313.0,88306.0,0.00153772]
[1766146386050,0.00572,88313.0,88306.0,0.13839]
[1766146386271,0.05108,88318.0,88306.0,0.13839]
[1766146386848,0.05661786,88312.0,88304.0,0.00572]
[1766146387072,0.02233445,88311.0,88302.0,0.00572]
[1766146387285,0.02233445,88311.0,88295.0,0.0025]
[1766146387286,0.01132425,88306.0,88293.0,0.0025]
[1766146387456,0.02264954,88307.0,88293.0,0.0025]
[1766146387657,0.01132425,88306.0,88293.0,0.0025]
[1766146387859,0.00572,88309.0,88293.0,0.0025]
[1766146387860,0.01132464,88303.0,88293.0,0.0025]
[1766146388065,0.06794787,88303.0,88293.0,0.0025]
[1766146388266,0.01132502,88300.0,88287.0,0.0025]
[1766146388464,0.02264954,88299.0,88287.0,0.0025]
[1766146388682,0.03397444,88301.0,88287.0,0.0025]
[1766146389197,0.02264954,88301.0,88287.0,0.0025]
[1766146389399,0.02264954,88301.0,88286.0,0.0025]
[1766146389760,0.01132515,88299.0,88286.0,0.0025]
[1766146389979,0.03397469,88299.0,88286.0,0.0025]
[1766146390185,0.02264954,88299.0,88286.0,0.14089]
[1766146390389,0.00572,88302.0,88299.0,0.001099]
[1766146390561,0.00572,88302.0,88294.0,0.13839]
[1766146390748,0.00572,88304.0,88296.0,0.13839]
[1766146391176,0.00572,88309.0,88301.0,0.32294]
[1766146391411,0.00572,88309.0,88304.0,0.001099]
[1766146391616,0.00572,88309.0,88302.0,0.13839]
[1766146392027,0.00572,88309.0,88302.0,0.32294]
[1766146392178,0.00572,88309.0,88299.0,0.00572]
[1766146393201,0.01132336,88313.0,88299.0,0.00572]
[1766146393411,0.01132348,88312.0,88299.0,0.00572]
[1766146393611,0.02264954,88311.0,88299.0,0.00572]
[1766146393930,0.01132374,88310.0,88295.0,0.04077412]
[1766146394141,0.01132374,88310.0,88286.0,0.33426682]
[1766146394142,0.22650056,88300.0,88284.0,0.06117944]
[1766146394439,0.01132566,88295.0,88284.0,0.00036345]
[1766146394635,0.07367342,88296.0,88284.0,0.00036345]
[1766146394833,0.07927807,88295.0,88284.0,0.00036345]
[1766146395136,0.0339752,88295.0,88284.0,0.00036345]
[1766146395341,0.02264954,88295.0,88284.0,0.00036345]
[1766146395512,0.01132592,88293.0,88284.0,0.00036345]
[1766146395900,0.02264954,88293.0,88284.0,0.00036345]
[1766146396101,0.03397546,88293.0,88282.0,0.0025]
[1766146396306,0.02264954,88293.0,88282.0,0.00260888]
[1766146396801,0.0339752,88295.0,88282.0,0.00260888]
[1766146397238,0.01132592,88293.0,88282.0,0.00260888]
[1766146397444,0.02264954,88293.0,88282.0,0.00260888]
[1766146397779,0.02264954,88294.0,88282.0,0.00260888]
[1766146397942,0.0339752,88295.0,88282.0,0.00260888]
[1766146398328,0.02264954,88295.0,88282.0,0.00260888]
[1766146399629,0.0339752,88295.0,88282.0,0.00260888]
[1766146399893,0.01132579,88294.0,88282.0,0.00260888]
[1766146400782,0.0679548,88294.0,88282.0,0.00260888]
[1766146401051,0.01132618,88291.0,88282.0,0.00260888]
[1766146401209,0.01132618,88291.0,88281.0,0.00572]
[1766146401210,0.06795868,88289.0,88277.0,0.00572]
[1766146401370,0.0339761,88288.0,88275.0,0.00572]
[1766146401878,0.02264954,88288.0,88275.0,0.00572]
[1766146402279,0.00572,88290.0,88275.0,0.00572]
[1766146402280,0.00572,88290.0,88275.0,0.15268]
[1766146402483,0.02264954,88289.0,88275.0,0.15268]
[1766146402913,0.02264954,88289.0,88275.0,0.14696]
[1766146403063,0.02264954,88289.0,88276.0,0.0025]
[1766146404278,0.03397597,88289.0,88276.0,0.0025]
[1766146404681,0.02941905,88288.0,88271.0,0.06081599]
[1766146404904,0.02941905,88288.0,88260.0,0.30737766]
[1766146404905,0.01132772,88279.0,88265.0,0.06081599]
[1766146405134,0.01704759,88280.0,88265.0,0.00582908]
[1766146405366,0.01132823,88275.0,88259.0,0.06112683]
[1766146405575,0.02264954,88274.0,88263.0,0.00572]
[1766146405731,0.02275852,88275.0,88263.0,0.00572]
[1766146406272,0.00010898,88275.0,88263.0,0.00572]
[1766146407392,0.00010898,88275.0,88264.0,0.0025]
[1766146407712,0.00010898,88275.0,88258.0,0.01]
[1766146407713,0.00572,88274.0,88258.0,0.01]
[1766146407866,0.0396979,88274.0,88258.0,0.01]
[1766146408066,0.05664693,88269.0,88254.0,0.00572]
[1766146408385,0.01143721,88275.0,88254.0,0.00572]
[1766146408386,0.02836954,88268.0,88254.0,0.00572]
[1766146408542,0.00572,88268.0,88255.0,0.01400924]
[1766146408761,0.00572,88268.0,88254.0,0.00572]
[1766146409132,0.00572,88268.0,88254.0,0.07370545]
[1766146409370,0.00572,88268.0,88253.0,0.01133105]
[1766146409580,0.00572,88268.0,88253.0,0.0025]
[1766146409776,0.02264954,88267.0,88252.0,0.01705118]
[1766146409979,0.02264954,88267.0,88252.0,0.00572]
[1766146410154,0.02264954,88267.0,88253.0,0.0025]
[1766146410539,0.02264954,88267.0,88253.0,0.01383105]
[1766146410741,0.02264954,88267.0,88253.0,0.0025]
[1766146411398,0.01133067,88256.0,88250.0,1.0]
[1766146411557,0.01133067,88256.0,88230.0,0.01133401]
[1766146411558,0.01133144,88250.0,88230.0,0.01133401]
[1766146411756,0.02836954,88249.0,88232.0,0.00572]
[1766146411959,0.02836954,88249.0,88238.0,0.3221]
[1766146412159,0.00572,88249.0,88240.0,0.14696]
[1766146412786,0.00572,88249.0,88240.0,0.06820031]
[1766146413386,0.00572,88249.0,88240.0,0.07953303]
[1766146413676,0.00572,88249.0,88240.0,0.06820031]
[1766146414018,0.00572,88251.0,88243.0,0.01133234]
[1766146414220,0.06797881,88263.0,88245.0,0.32078]
[1766146414221,0.00572,88255.0,88245.0,0.32078]
[1766146414535,0.00572,88255.0,88246.0,0.01133195]
[1766146414736,0.0025,88268.0,88249.0,0.05665785]
[1766146414938,0.02836954,88267.0,88252.0,0.15818]
[1766146415102,0.02836954,88267.0,88252.0,0.15858554]
[1766146415309,0.02836954,88267.0,88252.0,0.16951118]
[1766146415549,0.02836954,88267.0,88252.0,0.17366391]
[1766146415724,0.02836954,88267.0,88252.0,0.15818]
[1766146417746,0.0113299,88262.0,88246.0,0.15818]
[1766146417948,0.001099,88252.0,88243.0,0.0025]
[1766146418151,0.001099,88252.0,88244.0,0.00572]
[1766146418480,0.01133016,88260.0,88244.0,0.00572]
[1766146418623,0.02264954,88259.0,88244.0,0.00572]
[1766146419054,0.01133067,88256.0,88240.0,0.0025]
[1766146419276,0.02836954,88255.0,88240.0,0.0025]
[1766146419890,0.03970034,88255.0,88240.0,0.0025]
[1766146420069,0.02836954,88255.0,88237.0,0.0025]
[1766146420248,0.03970034,88255.0,88237.0,0.0025]
[1766146420762,0.01133093,88254.0,88236.0,0.00572]
[1766146420963,0.02264954,88253.0,88237.0,0.0025]
[1766146421369,0.03398059,88253.0,88237.0,0.0025]
[1766146421688,0.02264954,88253.0,88237.0,0.0025]
[1766146422059,0.03398059,88253.0,88237.0,0.0025]
[1766146422276,0.01133195,88246.0,88236.0,0.0025]
[1766146422681,0.01133195,88246.0,88226.0,0.16951452]
[1766146422682,0.02264954,88246.0,88232.0,0.00572]
[1766146423062,0.03398149,88246.0,88232.0,0.00572]
[1766146423262,0.02264954,88246.0,88232.0,0.00572]
[1766146423999,0.00572,88249.0,88233.0,0.01133362]
[1766146424201,0.00572,88249.0,88232.0,0.1639]
[1766146424405,0.00572,88249.0,88233.0,0.01133362]
[1766146424698,0.00572,88249.0,88234.0,0.01383349]
[1766146424852,0.00572,88249.0,88234.0,0.16068]
[1766146425883,0.00572,88249.0,88234.0,0.17201349]
[1766146426312,0.00572,88249.0,88235.0,0.01383337]
[1766146426514,0.00572,88249.0,88235.0,0.0025]
[1766146426715,0.00572,88249.0,88236.0,0.01383324]
[1766146426919,0.00572,88249.0,88236.0,0.17201324]
[1766146427710,0.00572,88249.0,88236.0,0.16068]
[1766146427911,0.00572,88249.0,88236.0,0.17201324]
[1766146428112,0.00572,88249.0,88237.0,0.01133311]
[1766146428311,0.02264954,88255.0,88251.0,0.01133131]
[1766146428497,0.02264954,88255.0,88236.0,0.0025]
[1766146428498,0.0025,88262.0,88252.0,0.15818]
[1766146428694,0.00832896,88262.0,88250.0,0.32078]
[1766146428921,0.00832896,88262.0,88251.0,0.01133131]
[1766146429202,0.00832896,88262.0,88250.0,0.32078]